Workbook

Sheet データ
B1: 東証株価指数（月間，終値） | C1: 不動産価格指数（住宅），マンション（区分所有），東京都（季節調整） | D1: 不動産価格指数（住宅），マンション（区分所有），南関東圏（季節調整） | H1: 東証株価指数(2008年4月=100) | I1: 東京都マンション価格(2008年4月=100) | J1: 南関東圏マンション価格(2008年4月=100)
A2: 2007-04-01 | B2: 1701 | C2: 100.7 | G2: 2007-04-01 | H2: =B2/B$14*100 -> 125.1978066 | I2: 99.7029703
A3: 2007-05-01 | B3: 1755.68 | C3: 101 | G3: 2007-05-01 | H3: =B3/B$14*100 -> 129.2223899 | I3: 100
A4: 2007-06-01 | B4: 1774.88 | C4: 103.1 | G4: 2007-06-01 | H4: =B4/B$14*100 -> 130.6355574 | I4: 102.0792079
A5: 2007-07-01 | B5: 1706.18 | C5: 100.9 | G5: 2007-07-01 | H5: =B5/B$14*100 -> 125.5790675 | I5: 99.9009901
A6: 2007-08-01 | B6: 1608.25 | C6: 101.5 | G6: 2007-08-01 | H6: =B6/B$14*100 -> 118.3711773 | I6: 100.4950495
A7: 2007-09-01 | B7: 1616.62 | C7: 103.2 | G7: 2007-09-01 | H7: =B7/B$14*100 -> 118.98723 | I7: 102.1782178
A8: 2007-10-01 | B8: 1620.07 | C8: 102.8 | G8: 2007-10-01 | H8: =B8/B$14*100 -> 119.2411585 | I8: 101.7821782
A9: 2007-11-01 | B9: 1531.88 | C9: 104.1 | G9: 2007-11-01 | H9: =B9/B$14*100 -> 112.7501564 | I9: 103.0693069
A10: 2007-12-01 | B10: 1475.68 | C10: 103.9 | G10: 2007-12-01 | H10: =B10/B$14*100 -> 108.6136974 | I10: 102.8712871
A11: 2008-01-01 | B11: 1346.31 | C11: 105.9 | G11: 2008-01-01 | H11: =B11/B$14*100 -> 99.09174548 | I11: 104.8514851
A12: 2008-02-01 | B12: 1324.28 | C12: 101.2 | G12: 2008-02-01 | H12: =B12/B$14*100 -> 97.470283 | I12: 100.1980198
A13: 2008-03-01 | B13: 1212.96 | C13: 101 | G13: 2008-03-01 | H13: =B13/B$14*100 -> 89.2768557 | I13: 100
A14: 2008-04-01 | B14: 1358.65 | C14: 101 | D14: 101.8 | G14: 2008-04-01 | H14: =B14/B$14*100 -> 100 | I14: 100 | J14: 100
A15: 2008-05-01 | B15: 1408.14 | C15: 100.3 | D15: 99 | G15: 2008-05-01 | H15: =B15/B$14*100 -> 103.6425864 | I15: 99.30693069 | J15: 97.24950884
A16: 2008-06-01 | B16: 1320.1 | C16: 101.4 | D16: 101.4 | G16: 2008-06-01 | H16: =B16/B$14*100 -> 97.16262466 | I16: 100.3960396 | J16: 99.60707269
A17: 2008-07-01 | B17: 1303.62 | C17: 101.6 | D17: 100.4 | G17: 2008-07-01 | H17: =B17/B$14*100 -> 95.94965591 | I17: 100.5940594 | J17: 98.62475442
A18: 2008-08-01 | B18: 1254.71 | C18: 97.6 | D18: 96.5 | G18: 2008-08-01 | H18: =B18/B$14*100 -> 92.34975895 | I18: 96.63366337 | J18: 94.79371316
A19: 2008-09-01 | B19: 1087.41 | C19: 96.4 | D19: 98.2 | G19: 2008-09-01 | H19: =B19/B$14*100 -> 80.03606521 | I19: 95.44554455 | J19: 96.46365422
A20: 2008-10-01 | B20: 867.12 | C20: 96.9 | D20: 97.5 | G20: 2008-10-01 | H20: =B20/B$14*100 -> 63.82217643 | I20: 95.94059406 | J20: 95.77603143
A21: 2008-11-01 | B21: 834.82 | C21: 95.8 | D21: 97.6 | G21: 2008-11-01 | H21: =B21/B$14*100 -> 61.44481655 | I21: 94.85148515 | J21: 95.87426326
A22: 2008-12-01 | B22: 859.24 | C22: 95.3 | D22: 95.4 | G22: 2008-12-01 | H22: =B22/B$14*100 -> 63.24218894 | I22: 94.35643564 | J22: 93.71316306
A23: 2009-01-01 | B23: 794.03 | C23: 96.5 | D23: 94.1 | G23: 2009-01-01 | H23: =B23/B$14*100 -> 58.44257167 | I23: 95.54455446 | J23: 92.43614931
A24: 2009-02-01 | B24: 756.71 | C24: 95.1 | D24: 93.3 | G24: 2009-02-01 | H24: =B24/B$14*100 -> 55.69572738 | I24: 94.15841584 | J24: 91.6502947
A25: 2009-03-01 | B25: 773.66 | C25: 93.7 | D25: 92.8 | G25: 2009-03-01 | H25: =B25/B$14*100 -> 56.94328929 | I25: 92.77227723 | J25: 91.15913556
A26: 2009-04-01 | B26: 837.79 | C26: 94.9 | D26: 93.2 | G26: 2009-04-01 | H26: =B26/B$14*100 -> 61.66341589 | I26: 93.96039604 | J26: 91.55206287
A27: 2009-05-01 | B27: 897.91 | C27: 95.3 | D27: 94.2 | G27: 2009-05-01 | H27: =B27/B$14*100 -> 66.08839657 | I27: 94.35643564 | J27: 92.53438114
A28: 2009-06-01 | B28: 929.76 | C28: 93.7 | D28: 93.2 | G28: 2009-06-01 | H28: =B28/B$14*100 -> 68.43263534 | I28: 92.77227723 | J28: 91.55206287
A29: 2009-07-01 | B29: 950.26 | C29: 93.6 | D29: 93.9 | G29: 2009-07-01 | H29: =B29/B$14*100 -> 69.94148603 | I29: 92.67326733 | J29: 92.23968566
A30: 2009-08-01 | B30: 965.73 | C30: 96.3 | D30: 94.7 | G30: 2009-08-01 | H30: =B30/B$14*100 -> 71.08011629 | I30: 95.34653465 | J30: 93.02554028
A31: 2009-09-01 | B31: 909.84 | C31: 97.4 | D31: 96.2 | G31: 2009-09-01 | H31: =B31/B$14*100 -> 66.96647407 | I31: 96.43564356 | J31: 94.49901768
A32: 2009-10-01 | B32: 894.67 | C32: 96.3 | D32: 94.9 | G32: 2009-10-01 | H32: =B32/B$14*100 -> 65.84992456 | I32: 95.34653465 | J32: 93.22200393
A33: 2009-11-01 | B33: 839.94 | C33: 98.8 | D33: 99.4 | G33: 2009-11-01 | H33: =B33/B$14*100 -> 61.82166121 | I33: 97.82178218 | J33: 97.64243615
A34: 2009-12-01 | B34: 907.59 | C34: 98.1 | D34: 97.4 | G34: 2009-12-01 | H34: =B34/B$14*100 -> 66.80086851 | I34: 97.12871287 | J34: 95.67779961
A35: 2010-01-01 | B35: 901.12 | C35: 97.8 | D35: 97.7 | G35: 2010-01-01 | H35: =B35/B$14*100 -> 66.32466051 | I35: 96.83168317 | J35: 95.97249509
A36: 2010-02-01 | B36: 894.1 | C36: 101.1 | D36: 99.3 | G36: 2010-02-01 | H36: =B36/B$14*100 -> 65.80797115 | I36: 100.0990099 | J36: 97.54420432
A37: 2010-03-01 | B37: 978.81 | C37: 99.8 | D37: 99.1 | G37: 2010-03-01 | H37: =B37/B$14*100 -> 72.04283664 | I37: 98.81188119 | J37: 97.34774067
A38: 2010-04-01 | B38: 987.04 | C38: 99.8 | D38: 99.6 | G38: 2010-04-01 | H38: =B38/B$14*100 -> 72.64858499 | I38: 98.81188119 | J38: 97.8388998
A39: 2010-05-01 | B39: 880.46 | C39: 99.9 | D39: 99.9 | G39: 2010-05-01 | H39: =B39/B$14*100 -> 64.80403342 | I39: 98.91089109 | J39: 98.13359528
A40: 2010-06-01 | B40: 841.42 | C40: 98.4 | D40: 99.4 | G40: 2010-06-01 | H40: =B40/B$14*100 -> 61.93059287 | I40: 97.42574257 | J40: 97.64243615
A41: 2010-07-01 | B41: 849.5 | C41: 101 | D41: 100.8 | G41: 2010-07-01 | H41: =B41/B$14*100 -> 62.52530085 | I41: 100 | J41: 99.01768173
A42: 2010-08-01 | B42: 804.67 | C42: 101.6 | D42: 101.2 | G42: 2010-08-01 | H42: =B42/B$14*100 -> 59.22570198 | I42: 100.5940594 | J42: 99.41060904
A43: 2010-09-01 | B43: 829.51 | C43: 97 | D43: 99.3 | G43: 2010-09-01 | H43: =B43/B$14*100 -> 61.05398741 | I43: 96.03960396 | J43: 97.54420432
A44: 2010-10-01 | B44: 810.91 | C44: 102.8 | D44: 101.1 | G44: 2010-10-01 | H44: =B44/B$14*100 -> 59.68498142 | I44: 101.7821782 | J44: 99.31237721
A45: 2010-11-01 | B45: 860.94 | C45: 97.2 | D45: 99.2 | G45: 2010-11-01 | H45: =B45/B$14*100 -> 63.36731314 | I45: 96.23762376 | J45: 97.4459725
A46: 2010-12-01 | B46: 898.8 | C46: 103.8 | D46: 103.3 | G46: 2010-12-01 | H46: =B46/B$14*100 -> 66.15390277 | I46: 102.7722772 | J46: 101.4734774
A47: 2011-01-01 | B47: 910.08 | C47: 99.2 | D47: 99.4 | G47: 2011-01-01 | H47: =B47/B$14*100 -> 66.98413867 | I47: 98.21782178 | J47: 97.64243615
A48: 2011-02-01 | B48: 951.27 | C48: 100.8 | D48: 101.9 | G48: 2011-02-01 | H48: =B48/B$14*100 -> 70.01582453 | I48: 99.8019802 | J48: 100.0982318
A49: 2011-03-01 | B49: 869.38 | C49: 102.6 | D49: 103.2 | G49: 2011-03-01 | H49: =B49/B$14*100 -> 63.98851801 | I49: 101.5841584 | J49: 101.3752456
A50: 2011-04-01 | B50: 851.85 | C50: 100.5 | D50: 101.5 | G50: 2011-04-01 | H50: =B50/B$14*100 -> 62.69826666 | I50: 99.5049505 | J50: 99.70530452
A51: 2011-05-01 | B51: 838.48 | C51: 101.3 | D51: 101.1 | G51: 2011-05-01 | H51: =B51/B$14*100 -> 61.7142016 | I51: 100.2970297 | J51: 99.31237721
A52: 2011-06-01 | B52: 849.22 | C52: 101.8 | D52: 102.3 | G52: 2011-06-01 | H52: =B52/B$14*100 -> 62.50469216 | I52: 100.7920792 | J52: 100.4911591
A53: 2011-07-01 | B53: 841.37 | C53: 99.4 | D53: 100.3 | G53: 2011-07-01 | H53: =B53/B$14*100 -> 61.92691274 | I53: 98.41584158 | J53: 98.52652259
A54: 2011-08-01 | B54: 770.6 | C54: 98.2 | D54: 100.5 | G54: 2011-08-01 | H54: =B54/B$14*100 -> 56.71806573 | I54: 97.22772277 | J54: 98.72298625
A55: 2011-09-01 | B55: 761.17 | C55: 101.5 | D55: 102.6 | G55: 2011-09-01 | H55: =B55/B$14*100 -> 56.02399441 | I55: 100.4950495 | J55: 100.7858546
A56: 2011-10-01 | B56: 764.06 | C56: 101.1 | D56: 102.1 | G56: 2011-10-01 | H56: =B56/B$14*100 -> 56.23670555 | I56: 100.0990099 | J56: 100.2946955
A57: 2011-11-01 | B57: 728.46 | C57: 99 | D57: 100.2 | G57: 2011-11-01 | H57: =B57/B$14*100 -> 53.61645751 | I57: 98.01980198 | J57: 98.42829077
A58: 2011-12-01 | B58: 728.61 | C58: 99.3 | D58: 100.5 | G58: 2011-12-01 | H58: =B58/B$14*100 -> 53.62749788 | I58: 98.31683168 | J58: 98.72298625
A59: 2012-01-01 | B59: 755.27 | C59: 101.1 | D59: 101.6 | G59: 2012-01-01 | H59: =B59/B$14*100 -> 55.58973982 | I59: 100.0990099 | J59: 99.80353635
A60: 2012-02-01 | B60: 835.96 | C60: 99.2 | D60: 100.4 | G60: 2012-02-01 | H60: =B60/B$14*100 -> 61.52872337 | I60: 98.21782178 | J60: 98.62475442
A61: 2012-03-01 | B61: 854.35 | C61: 99.6 | D61: 100 | G61: 2012-03-01 | H61: =B61/B$14*100 -> 62.88227284 | I61: 98.61386139 | J61: 98.23182711
A62: 2012-04-01 | B62: 804.27 | C62: 100.7 | D62: 100.5 | G62: 2012-04-01 | H62: =B62/B$14*100 -> 59.19626099 | I62: 99.7029703 | J62: 98.72298625
A63: 2012-05-01 | B63: 719.49 | C63: 98.8 | D63: 99.8 | G63: 2012-05-01 | H63: =B63/B$14*100 -> 52.95624333 | I63: 97.82178218 | J63: 98.03536346
A64: 2012-06-01 | B64: 770.08 | C64: 99.6 | D64: 99.9 | G64: 2012-06-01 | H64: =B64/B$14*100 -> 56.67979244 | I64: 98.61386139 | J64: 98.13359528
A65: 2012-07-01 | B65: 736.31 | C65: 101.1 | D65: 101.1 | G65: 2012-07-01 | H65: =B65/B$14*100 -> 54.19423693 | I65: 100.0990099 | J65: 99.31237721
A66: 2012-08-01 | B66: 731.64 | C66: 100.3 | D66: 100.5 | G66: 2012-08-01 | H66: =B66/B$14*100 -> 53.85051338 | I66: 99.30693069 | J66: 98.72298625
A67: 2012-09-01 | B67: 737.42 | C67: 98.6 | D67: 99.4 | G67: 2012-09-01 | H67: =B67/B$14*100 -> 54.27593567 | I67: 97.62376238 | J67: 97.64243615
A68: 2012-10-01 | B68: 742.33 | C68: 98.4 | D68: 99.1 | G68: 2012-10-01 | H68: =B68/B$14*100 -> 54.63732381 | I68: 97.42574257 | J68: 97.34774067
A69: 2012-11-01 | B69: 781.46 | C69: 98.5 | D69: 99.7 | G69: 2012-11-01 | H69: =B69/B$14*100 -> 57.51738858 | I69: 97.52475248 | J69: 97.93713163
A70: 2012-12-01 | B70: 859.8 | C70: 99.2 | D70: 99.6 | G70: 2012-12-01 | H70: =B70/B$14*100 -> 63.28340632 | I70: 98.21782178 | J70: 97.8388998
A71: 2013-01-01 | B71: 940.25 | C71: 99.3 | D71: 99.4 | G71: 2013-01-01 | H71: =B71/B$14*100 -> 69.20472528 | I71: 98.31683168 | J71: 97.64243615
A72: 2013-02-01 | B72: 975.66 | C72: 98.3 | D72: 98.6 | G72: 2013-02-01 | H72: =B72/B$14*100 -> 71.81098885 | I72: 97.32673267 | J72: 96.85658153
A73: 2013-03-01 | B73: 1034.71 | C73: 99 | D73: 100.5 | G73: 2013-03-01 | H73: =B73/B$14*100 -> 76.15721488 | I73: 98.01980198 | J73: 98.72298625
A74: 2013-04-01 | B74: 1165.13 | C74: 101 | D74: 101.4 | G74: 2013-04-01 | H74: =B74/B$14*100 -> 85.75644942 | I74: 100 | J74: 99.60707269
A75: 2013-05-01 | B75: 1135.78 | C75: 102.7 | D75: 102.6 | G75: 2013-05-01 | H75: =B75/B$14*100 -> 83.59621683 | I75: 101.6831683 | J75: 100.7858546
A76: 2013-06-01 | B76: 1133.84 | C76: 104 | D76: 103.5 | G76: 2013-06-01 | H76: =B76/B$14*100 -> 83.45342804 | I76: 102.970297 | J76: 101.6699411
A77: 2013-07-01 | B77: 1131.7 | C77: 102.6 | D77: 103.5 | G77: 2013-07-01 | H77: =B77/B$14*100 -> 83.29591874 | I77: 101.5841584 | J77: 101.6699411
A78: 2013-08-01 | B78: 1106.05 | C78: 105.6 | D78: 105 | G78: 2013-08-01 | H78: =B78/B$14*100 -> 81.40801531 | I78: 104.5544554 | J78: 103.1434185
A79: 2013-09-01 | B79: 1194.1 | C79: 105.8 | D79: 105.4 | G79: 2013-09-01 | H79: =B79/B$14*100 -> 87.88871306 | I79: 104.7524752 | J79: 103.5363458
A80: 2013-10-01 | B80: 1194.26 | C80: 105.8 | D80: 105.9 | G80: 2013-10-01 | H80: =B80/B$14*100 -> 87.90048946 | I80: 104.7524752 | J80: 104.0275049
A81: 2013-11-01 | B81: 1258.66 | C81: 107.9 | D81: 107.8 | G81: 2013-11-01 | H81: =B81/B$14*100 -> 92.64048872 | I81: 106.8316832 | J81: 105.8939096
A82: 2013-12-01 | B82: 1302.29 | C82: 110.4 | D82: 109.3 | G82: 2013-12-01 | H82: =B82/B$14*100 -> 95.85176462 | I82: 109.3069307 | J82: 107.367387
A83: 2014-01-01 | B83: 1220.64 | C83: 108.5 | D83: 107 | G83: 2014-01-01 | H83: =B83/B$14*100 -> 89.8421227 | I83: 107.4257426 | J83: 105.108055
A84: 2014-02-01 | B84: 1211.66 | C84: 112.5 | D84: 110.6 | G84: 2014-02-01 | H84: =B84/B$14*100 -> 89.18117249 | I84: 111.3861386 | J84: 108.6444008
A85: 2014-03-01 | B85: 1202.89 | C85: 109.7 | D85: 108.3 | G85: 2014-03-01 | H85: =B85/B$14*100 -> 88.5356788 | I85: 108.6138614 | J85: 106.3850688
A86: 2014-04-01 | B86: 1162.44 | C86: 109.3 | D86: 107.2 | G86: 2014-04-01 | H86: =B86/B$14*100 -> 85.55845876 | I86: 108.2178218 | J86: 105.3045187
A87: 2014-05-01 | B87: 1201.41 | C87: 110.5 | D87: 109.5 | G87: 2014-05-01 | H87: =B87/B$14*100 -> 88.42674714 | I87: 109.4059406 | J87: 107.5638507
A88: 2014-06-01 | B88: 1262.56 | C88: 110.5 | D88: 109.6 | G88: 2014-06-01 | H88: =B88/B$14*100 -> 92.92753837 | I88: 109.4059406 | J88: 107.6620825
A89: 2014-07-01 | B89: 1289.42 | C89: 113.1 | D89: 111.1 | G89: 2014-07-01 | H89: =B89/B$14*100 -> 94.90450079 | I89: 111.980198 | J89: 109.1355599
A90: 2014-08-01 | B90: 1277.97 | C90: 112.2 | D90: 110.6 | G90: 2014-08-01 | H90: =B90/B$14*100 -> 94.06175247 | I90: 111.0891089 | J90: 108.6444008
A91: 2014-09-01 | B91: 1326.29 | C91: 113.2 | D91: 111.3 | G91: 2014-09-01 | H91: =B91/B$14*100 -> 97.61822397 | I91: 112.0792079 | J91: 109.3320236
A92: 2014-10-01 | B92: 1333.64 | C92: 114.5 | D92: 112.4 | G92: 2014-10-01 | H92: =B92/B$14*100 -> 98.15920215 | I92: 113.3663366 | J92: 110.4125737
A93: 2014-11-01 | B93: 1410.34 | C93: 115.8 | D93: 113 | G93: 2014-11-01 | H93: =B93/B$14*100 -> 103.8045118 | I93: 114.6534653 | J93: 111.0019646
A94: 2014-12-01 | B94: 1407.51 | C94: 115.1 | D94: 113.3 | G94: 2014-12-01 | H94: =B94/B$14*100 -> 103.5962168 | I94: 113.960396 | J94: 111.2966601
A95: 2015-01-01 | B95: 1415.07 | C95: 116.5 | D95: 114.1 | G95: 2015-01-01 | H95: =B95/B$14*100 -> 104.1526515 | I95: 115.3465347 | J95: 112.0825147
A96: 2015-02-01 | B96: 1523.85 | C96: 118.4 | D96: 114.6 | G96: 2015-02-01 | H96: =B96/B$14*100 -> 112.1591285 | I96: 117.2277228 | J96: 112.5736739
A97: 2015-03-01 | B97: 1543.11 | C97: 120.2 | D97: 118 | G97: 2015-03-01 | H97: =B97/B$14*100 -> 113.5767122 | I97: 119.009901 | J97: 115.913556
A98: 2015-04-01 | B98: 1592.79 | C98: 120.7 | D98: 117.2 | G98: 2015-04-01 | H98: =B98/B$14*100 -> 117.233283 | I98: 119.5049505 | J98: 115.1277014
A99: 2015-05-01 | B99: 1673.65 | C99: 120.5 | D99: 117.2 | G99: 2015-05-01 | H99: =B99/B$14*100 -> 123.184779 | I99: 119.3069307 | J99: 115.1277014
A100: 2015-06-01 | B100: 1630.4 | C100: 120.9 | D100: 117.3 | G100: 2015-06-01 | H100: =B100/B$14*100 -> 120.001472 | I100: 119.7029703 | J100: 115.2259332
A101: 2015-07-01 | B101: 1659.52 | C101: 121.5 | D101: 118.2 | G101: 2015-07-01 | H101: =B101/B$14*100 -> 122.1447761 | I101: 120.2970297 | J101: 116.1100196
A102: 2015-08-01 | B102: 1537.05 | C102: 122.6 | D102: 118.8 | G102: 2015-08-01 | H102: =B102/B$14*100 -> 113.1306812 | I102: 121.3861386 | J102: 116.6994106
A103: 2015-09-01 | B103: 1411.16 | C103: 123.5 | D103: 120.9 | G103: 2015-09-01 | H103: =B103/B$14*100 -> 103.8648659 | I103: 122.2772277 | J103: 118.762279
A104: 2015-10-01 | B104: 1558.2 | C104: 125.7 | D104: 121.5 | G104: 2015-10-01 | H104: =B104/B$14*100 -> 114.6873735 | I104: 124.4554455 | J104: 119.3516699
A105: 2015-11-01 | B105: 1580.25 | C105: 124.7 | D105: 121.3 | G105: 2015-11-01 | H105: =B105/B$14*100 -> 116.310308 | I105: 123.4653465 | J105: 119.1552063
A106: 2015-12-01 | B106: 1547.3 | C106: 125.9 | D106: 122.4 | G106: 2015-12-01 | H106: =B106/B$14*100 -> 113.8851065 | I106: 124.6534653 | J106: 120.2357564
A107: 2016-01-01 | B107: 1432.07 | C107: 128.1 | D107: 123.4 | G107: 2016-01-01 | H107: =B107/B$14*100 -> 105.4038936 | I107: 126.8316832 | J107: 121.2180747
A108: 2016-02-01 | B108: 1297.85 | C108: 128 | D108: 123.9 | G108: 2016-02-01 | H108: =B108/B$14*100 -> 95.52496964 | I108: 126.7326733 | J108: 121.7092338
A109: 2016-03-01 | B109: 1347.2 | C109: 125.5 | D109: 123.7 | G109: 2016-03-01 | H109: =B109/B$14*100 -> 99.15725168 | I109: 124.2574257 | J109: 121.5127701
A110: 2016-04-01 | B110: 1340.55 | C110: 128.4 | D110: 124 | G110: 2016-04-01 | H110: =B110/B$14*100 -> 98.66779524 | I110: 127.1287129 | J110: 121.8074656
A111: 2016-05-01 | B111: 1379.8 | C111: 131.7 | D111: 126 | G111: 2016-05-01 | H111: =B111/B$14*100 -> 101.5566923 | I111: 130.3960396 | J111: 123.7721022
A112: 2016-06-01 | B112: 1245.82 | C112: 130.1 | D112: 126.8 | G112: 2016-06-01 | H112: =B112/B$14*100 -> 91.69543297 | I112: 128.8118812 | J112: 124.5579568
A113: 2016-07-01 | B113: 1322.74 | C113: 130.8 | D113: 126.2 | G113: 2016-07-01 | H113: =B113/B$14*100 -> 97.35693519 | I113: 129.5049505 | J113: 123.9685658
A114: 2016-08-01 | B114: 1329.54 | C114: 130.8 | D114: 127.7 | G114: 2016-08-01 | H114: =B114/B$14*100 -> 97.85743201 | I114: 129.5049505 | J114: 125.4420432
A115: 2016-09-01 | B115: 1322.78 | C115: 132.9 | D115: 128.9 | G115: 2016-09-01 | H115: =B115/B$14*100 -> 97.35987929 | I115: 131.5841584 | J115: 126.6208251
A116: 2016-10-01 | B116: 1393.02 | C116: 131.9 | D116: 127.7 | G116: 2016-10-01 | H116: =B116/B$14*100 -> 102.529717 | I116: 130.5940594 | J116: 125.4420432
A117: 2016-11-01 | B117: 1469.43 | C117: 131.9 | D117: 128.1 | G117: 2016-11-01 | H117: =B117/B$14*100 -> 108.153682 | I117: 130.5940594 | J117: 125.8349705
A118: 2016-12-01 | B118: 1518.61 | C118: 133.6 | D118: 127.8 | G118: 2016-12-01 | H118: =B118/B$14*100 -> 111.7734516 | I118: 132.2772277 | J118: 125.540275
A119: 2017-01-01 | B119: 1521.67 | C119: 134.9 | D119: 130.3 | G119: 2017-01-01 | H119: =B119/B$14*100 -> 111.9986752 | I119: 133.5643564 | J119: 127.9960707
A120: 2017-02-01 | B120: 1535.32 | C120: 134.8 | D120: 130.6 | G120: 2017-02-01 | H120: =B120/B$14*100 -> 113.0033489 | I120: 133.4653465 | J120: 128.2907662
A121: 2017-03-01 | B121: 1512.6 | C121: 135.3 | D121: 131.2 | G121: 2017-03-01 | H121: =B121/B$14*100 -> 111.3311007 | I121: 133.960396 | J121: 128.8801572
A122: 2017-04-01 | B122: 1531.8 | C122: 134.7 | D122: 131.1 | G122: 2017-04-01 | H122: =B122/B$14*100 -> 112.7442682 | I122: 133.3663366 | J122: 128.7819253
A123: 2017-05-01 | B123: 1568.37 | C123: 135.5 | D123: 130.7 | G123: 2017-05-01 | H123: =B123/B$14*100 -> 115.4359106 | I123: 134.1584158 | J123: 128.388998
A124: 2017-06-01 | B124: 1611.9 | C124: 136.1 | D124: 131.4 | G124: 2017-06-01 | H124: =B124/B$14*100 -> 118.6398263 | I124: 134.7524752 | J124: 129.0766208
A125: 2017-07-01 | B125: 1618.61 | C125: 139.7 | D125: 134.7 | G125: 2017-07-01 | H125: =B125/B$14*100 -> 119.1336989 | I125: 138.3168317 | J125: 132.3182711
A126: 2017-08-01 | B126: 1617.41 | C126: 138.4 | D126: 133 | G126: 2017-08-01 | H126: =B126/B$14*100 -> 119.0453759 | I126: 137.029703 | J126: 130.6483301
A127: 2017-09-01 | B127: 1674.75 | C127: 138.5 | D127: 132.9 | G127: 2017-09-01 | H127: =B127/B$14*100 -> 123.2657417 | I127: 137.1287129 | J127: 130.5500982
A128: 2017-10-01 | B128: 1765.96 | C128: 136.2 | D128: 131.4 | G128: 2017-10-01 | H128: =B128/B$14*100 -> 129.9790233 | I128: 134.8514851 | J128: 129.0766208
A129: 2017-11-01 | B129: 1792.08 | C129: 139.7 | D129: 134.7 | G129: 2017-11-01 | H129: =B129/B$14*100 -> 131.9015199 | I129: 138.3168317 | J129: 132.3182711
A130: 2017-12-01 | B130: 1817.56 | C130: 139.3 | D130: 134.5 | G130: 2017-12-01 | H130: =B130/B$14*100 -> 133.7769109 | I130: 137.9207921 | J130: 132.1218075
A131: 2018-01-01 | B131: 1836.71 | C131: 139.4 | D131: 133.9 | G131: 2018-01-01 | H131: =B131/B$14*100 -> 135.1863983 | I131: 138.019802 | J131: 131.5324165
A132: 2018-02-01 | B132: 1768.24 | C132: 138.9 | D132: 133.8 | G132: 2018-02-01 | H132: =B132/B$14*100 -> 130.1468369 | I132: 137.5247525 | J132: 131.4341847
A133: 2018-03-01 | B133: 1716.3 | C133: 138.9 | D133: 135.1 | G133: 2018-03-01 | H133: =B133/B$14*100 -> 126.3239245 | I133: 137.5247525 | J133: 132.7111984
A134: 2018-04-01 | B134: 1777.23 | C134: 140.3 | D134: 135.3 | G134: 2018-04-01 | H134: =B134/B$14*100 -> 130.8085232 | I134: 138.9108911 | J134: 132.9076621
A135: 2018-05-01 | B135: 1747.45 | C135: 141.3 | D135: 136 | G135: 2018-05-01 | H135: =B135/B$14*100 -> 128.6166415 | I135: 139.9009901 | J135: 133.5952849
A136: 2018-06-01 | B136: 1730.89 | C136: 141.4 | D136: 136.2 | G136: 2018-06-01 | H136: =B136/B$14*100 -> 127.3977846 | I136: 140 | J136: 133.7917485
A137: 2018-07-01 | B137: 1753.29 | C137: 141 | D137: 136.8 | G137: 2018-07-01 | H137: =B137/B$14*100 -> 129.04648 | I137: 139.6039604 | J137: 134.3811395
A138: 2018-08-01 | B138: 1735.35 | C138: 144.3 | D138: 139.2 | G138: 2018-08-01 | H138: =B138/B$14*100 -> 127.7260516 | I138: 142.8712871 | J138: 136.7387033
A139: 2018-09-01 | B139: 1817.25 | C139: 141.7 | D139: 134.9 | G139: 2018-09-01 | H139: =B139/B$14*100 -> 133.7540941 | I139: 140.2970297 | J139: 132.5147348
A140: 2018-10-01 | B140: 1646.12 | C140: 141.8 | D140: 137.8 | G140: 2018-10-01 | H140: =B140/B$14*100 -> 121.1585029 | I140: 140.3960396 | J140: 135.3634578
A141: 2018-11-01 | B141: 1667.45 | C141: 144.8 | D141: 138.5 | G141: 2018-11-01 | H141: =B141/B$14*100 -> 122.7284437 | I141: 143.3663366 | J141: 136.0510806
A142: 2018-12-01 | B142: 1494.09 | C142: 143.6 | D142: 139.3 | G142: 2018-12-01 | H142: =B142/B$14*100 -> 109.9687189 | I142: 142.1782178 | J142: 136.8369352
A143: 2019-01-01 | B143: 1567.49 | C143: 144.3 | D143: 140.5 | G143: 2019-01-01 | H143: =B143/B$14*100 -> 115.3711405 | I143: 142.8712871 | J143: 138.0157171
A144: 2019-02-01 | B144: 1607.66 | C144: 145.1 | D144: 140.7 | G144: 2019-02-01 | H144: =B144/B$14*100 -> 118.3277518 | I144: 143.6633663 | J144: 138.2121807
A145: 2019-03-01 | B145: 1591.64 | C145: 146.3 | D145: 140.8 | G145: 2019-03-01 | H145: =B145/B$14*100 -> 117.1486402 | I145: 144.8514851 | J145: 138.3104126
A146: 2019-04-01 | B146: 1617.93 | C146: 146.9 | D146: 141.1 | G146: 2019-04-01 | H146: =B146/B$14*100 -> 119.0836492 | I146: 145.4455446 | J146: 138.6051081
A147: 2019-05-01 | B147: 1512.28 | C147: 145.4 | D147: 140.8 | G147: 2019-05-01 | H147: =B147/B$14*100 -> 111.3075479 | I147: 143.960396 | J147: 138.3104126
A148: 2019-06-01 | B148: 1551.14 | C148: 147 | D148: 141.6 | G148: 2019-06-01 | H148: =B148/B$14*100 -> 114.16774 | I148: 145.5445545 | J148: 139.0962672
A149: 2019-07-01 | B149: 1565.14 | C149: 147.2 | D149: 141.5 | G149: 2019-07-01 | H149: =B149/B$14*100 -> 115.1981747 | I149: 145.7425743 | J149: 138.9980354
A150: 2019-08-01 | B150: 1511.86 | C150: 146.2 | D150: 140.7 | G150: 2019-08-01 | H150: =B150/B$14*100 -> 111.2766349 | I150: 144.7524752 | J150: 138.2121807
A151: 2019-09-01 | B151: 1587.8 | C151: 146.3 | D151: 140.8 | G151: 2019-09-01 | H151: =B151/B$14*100 -> 116.8660067 | I151: 144.8514851 | J151: 138.3104126
A152: 2019-10-01 | B152: 1667.01 | C152: 149.4 | D152: 143.1 | G152: 2019-10-01 | H152: =B152/B$14*100 -> 122.6960586 | I152: 147.9207921 | J152: 140.5697446
A153: 2019-11-01 | B153: 1699.36 | C153: 149 | D153: 143.6 | G153: 2019-11-01 | H153: =B153/B$14*100 -> 125.0770986 | I153: 147.5247525 | J153: 141.0609037
A154: 2019-12-01 | B154: 1721.36 | C154: 150.3 | D154: 143.9 | G154: 2019-12-01 | H154: =B154/B$14*100 -> 126.696353 | I154: 148.8118812 | J154: 141.3555992
A155: 2020-01-01 | B155: 1684.44 | C155: 150.7 | D155: 144.4 | G155: 2020-01-01 | H155: =B155/B$14*100 -> 123.9789497 | I155: 149.2079208 | J155: 141.8467583
A156: 2020-02-01 | B156: 1510.87 | C156: 151.8 | D156: 145.5 | G156: 2020-02-01 | H156: =B156/B$14*100 -> 111.2037684 | I156: 150.2970297 | J156: 142.9273084
A157: 2020-03-01 | B157: 1403.04 | G157: 2020-03-01
A158: 2020-04-01 | B158: 1464.03 | G158: 2020-04-01
A159: 2020-05-01 | B159: 1563.67 | G159: 2020-05-01
A160: 2020-06-01 | G160: 2020-06-01
A161: 2020-07-01 | G161: 2020-07-01
A162: 2020-08-01 | G162: 2020-08-01
A163: 2020-09-01 | G163: 2020-09-01
A164: 2020-10-01 | G164: 2020-10-01
A165: 2020-11-01 | G165: 2020-11-01
A166: 2020-12-01 | G166: 2020-12-01

Sheet データ_TOPIX
A1: 日付 | B1: 始値 | C1: 高値 | D1: 安値 | E1: 終値
A2: 2020-06-01 | B2: 1563.81 | C2: 1633.4 | D2: 1530.78 | E2: 1587.09
A3: 2020-05-01 | B3: 1452.46 | C3: 1578.5 | D3: 1418.88 | E3: 1563.67
A4: 2020-04-01 | B4: 1388.66 | C4: 1478.84 | D4: 1314.11 | E4: 1464.03
A5: 2020-03-01 | B5: 1488.96 | C5: 1551.99 | D5: 1199.25 | E5: 1403.04
A6: 2020-02-01 | B6: 1660.66 | C6: 1744.43 | D6: 1500.87 | E6: 1510.87
A7: 2020-01-01 | B7: 1699.6 | C7: 1745.95 | D7: 1667.3 | E7: 1684.44
A8: 2019-12-01 | B8: 1705.99 | C8: 1747.2 | D8: 1691.15 | E8: 1721.36
A9: 2019-11-01 | B9: 1653.8 | C9: 1719.57 | D9: 1653.72 | E9: 1699.36
A10: 2019-10-01 | B10: 1595.35 | C10: 1669.91 | D10: 1560.83 | E10: 1667.01
A11: 2019-09-01 | B11: 1506.12 | C11: 1635.88 | D11: 1501.11 | E11: 1587.8
A12: 2019-08-01 | B12: 1556.12 | C12: 1568.41 | D12: 1462.41 | E12: 1511.86
A13: 2019-07-01 | B13: 1573.09 | C13: 1593.5 | D13: 1531.31 | E13: 1565.14
A14: 2019-06-01 | B14: 1491.54 | C14: 1563.45 | D14: 1490.28 | E14: 1551.14
A15: 2019-05-01 | B15: 1616.84 | C15: 1617.26 | D15: 1508.85 | E15: 1512.28
A16: 2019-04-01 | B16: 1612.13 | C16: 1633.96 | D16: 1600.49 | E16: 1617.93
A17: 2019-03-01 | B17: 1612.47 | C17: 1629.88 | D17: 1570.39 | E17: 1591.64
A18: 2019-02-01 | B18: 1565.63 | C18: 1624.42 | D18: 1536.65 | E18: 1607.66
A19: 2019-01-01 | B19: 1468.42 | C19: 1574.86 | D19: 1446.48 | E19: 1567.49
A20: 2018-12-01 | B20: 1687.77 | C20: 1696.14 | D20: 1408.89 | E20: 1494.09
A21: 2018-11-01 | B21: 1647.1 | C21: 1687.68 | D21: 1598.54 | E21: 1667.45
A22: 2018-10-01 | B22: 1814.05 | C22: 1838.3 | D22: 1581.56 | E22: 1646.12
A23: 2018-09-01 | B23: 1730.77 | C23: 1828.23 | D23: 1673.92 | E23: 1817.25
A24: 2018-08-01 | B24: 1762.92 | C24: 1774.34 | D24: 1667.95 | E24: 1735.35
A25: 2018-07-01 | B25: 1725.55 | C25: 1775.76 | D25: 1671.95 | E25: 1753.29
A26: 2018-06-01 | B26: 1742.65 | C26: 1802.94 | D26: 1711.75 | E26: 1730.89
A27: 2018-05-01 | B27: 1774.36 | C27: 1819.74 | D27: 1731.28 | E27: 1747.45
A28: 2018-04-01 | B28: 1716.32 | C28: 1780.38 | D28: 1687 | E28: 1777.23
A29: 2018-03-01 | B29: 1754.43 | C29: 1754.53 | D29: 1645.16 | E29: 1716.3
A30: 2018-02-01 | B30: 1849.53 | C30: 1870.94 | D30: 1691.65 | E30: 1768.24
A31: 2018-01-01 | B31: 1841.2 | C31: 1911.31 | D31: 1836.68 | E31: 1836.71
A32: 2017-12-01 | B32: 1804.8 | C32: 1833.28 | D32: 1761.18 | E32: 1817.56
A33: 2017-11-01 | B33: 1775.99 | C33: 1844.05 | D33: 1737.72 | E33: 1792.08
A34: 2017-10-01 | B34: 1677.77 | C34: 1772.59 | D34: 1671.05 | E34: 1765.96
A35: 2017-09-01 | B35: 1624.37 | C35: 1679.83 | D35: 1578.66 | E35: 1674.75
A36: 2017-08-01 | B36: 1619.13 | C36: 1642.34 | D36: 1589.05 | E36: 1617.41
A37: 2017-07-01 | B37: 1613.65 | C37: 1636.53 | D37: 1602.47 | E37: 1618.61
A38: 2017-06-01 | B38: 1570.47 | C38: 1627.54 | D38: 1570.24 | E38: 1611.9
A39: 2017-05-01 | B39: 1531.45 | C39: 1590.7 | D39: 1530.31 | E39: 1568.37
A40: 2017-04-01 | B40: 1518.9 | C40: 1538.89 | D40: 1452.15 | E40: 1531.8
A41: 2017-03-01 | B41: 1543.11 | C41: 1578.51 | D41: 1512.6 | E41: 1512.6
A42: 2017-02-01 | B42: 1511.26 | C42: 1559.51 | D42: 1507.08 | E42: 1535.32
A43: 2017-01-01 | B43: 1533.04 | C43: 1558.45 | D43: 1495.03 | E43: 1521.67
A44: 2016-12-01 | B44: 1486.08 | C44: 1558.75 | D44: 1462.07 | E44: 1518.61
A45: 2016-11-01 | B45: 1391.97 | C45: 1473.02 | D45: 1287.39 | E45: 1469.43
A46: 2016-10-01 | B46: 1332.14 | C46: 1393.44 | D46: 1329.06 | E46: 1393.02
A47: 2016-09-01 | B47: 1330.77 | C47: 1357.41 | D47: 1296.39 | E47: 1322.78
A48: 2016-08-01 | B48: 1308.3 | C48: 1331 | D48: 1262.86 | E48: 1329.54
A49: 2016-07-01 | B49: 1254.87 | C49: 1347.24 | D49: 1209.88 | E49: 1322.74
A50: 2016-06-01 | B50: 1369.96 | C50: 1374.37 | D50: 1192.8 | E50: 1245.82
A51: 2016-05-01 | B51: 1316.57 | C51: 1380.88 | D51: 1289.01 | E51: 1379.8
A52: 2016-04-01 | B52: 1343.24 | C52: 1412.98 | D52: 1250.77 | E52: 1340.55
A53: 2016-03-01 | B53: 1295.16 | C53: 1384.35 | D53: 1284.5 | E53: 1347.2
A54: 2016-02-01 | B54: 1448.04 | C54: 1463.79 | D54: 1193.85 | E54: 1297.85
A55: 2016-01-01 | B55: 1532.53 | C55: 1544.73 | D55: 1301.49 | E55: 1432.07
A56: 2015-12-01 | B56: 1585.52 | C56: 1607.27 | D56: 1502.55 | E56: 1547.3
A57: 2015-11-01 | B57: 1539.44 | C57: 1609.76 | D57: 1523.34 | E57: 1580.25
A58: 2015-10-01 | B58: 1422.36 | C58: 1570.06 | D58: 1414.2 | E58: 1558.2
A59: 2015-09-01 | B59: 1526.67 | C59: 1528.57 | D59: 1371.44 | E59: 1411.16
A60: 2015-08-01 | B60: 1659.68 | C60: 1702.83 | D60: 1410.94 | E60: 1537.05
A61: 2015-07-01 | B61: 1635.06 | C61: 1674.27 | D61: 1526.09 | E61: 1659.52
A62: 2015-06-01 | B62: 1662.55 | C62: 1686.61 | D62: 1616.66 | E62: 1630.4
A63: 2015-05-01 | B63: 1587.07 | C63: 1680.39 | D63: 1571.43 | E63: 1673.65
A64: 2015-04-01 | B64: 1536.7 | C64: 1633.81 | D64: 1519.41 | E64: 1592.79
A65: 2015-03-01 | B65: 1528.77 | C65: 1594.71 | D65: 1504.45 | E65: 1543.11
A66: 2015-02-01 | B66: 1402.52 | C66: 1529.2 | D66: 1387.38 | E66: 1523.85
A67: 2015-01-01 | B67: 1400.87 | C67: 1433.35 | D67: 1343.29 | E67: 1415.07
A68: 2014-12-01 | B68: 1413.6 | C68: 1454.22 | D68: 1346.37 | E68: 1407.51
A69: 2014-11-01 | B69: 1358.97 | C69: 1413.27 | D69: 1353.42 | E69: 1410.34
A70: 2014-10-01 | B70: 1325.55 | C70: 1338.35 | D70: 1177.22 | E70: 1333.64
A71: 2014-09-01 | B71: 1280.54 | C71: 1346.43 | D71: 1279.52 | E71: 1326.29
A72: 2014-08-01 | B72: 1279.09 | C72: 1296.02 | D72: 1224.85 | E72: 1277.97
A73: 2014-07-01 | B73: 1265.32 | C73: 1300.53 | D73: 1247.66 | E73: 1289.42
A74: 2014-06-01 | B74: 1210.82 | C74: 1273.8 | D74: 1210.82 | E74: 1262.56
A75: 2014-05-01 | B75: 1167.25 | C75: 1205.6 | D75: 1143.63 | E75: 1201.41
A76: 2014-04-01 | B76: 1207.63 | C76: 1223.26 | D76: 1121.5 | E76: 1162.44
A77: 2014-03-01 | B77: 1197.77 | C77: 1241.88 | D77: 1145.9 | E77: 1202.89
A78: 2014-02-01 | B78: 1212.97 | C78: 1234.54 | D78: 1139.27 | E78: 1211.66
A79: 2014-01-01 | B79: 1297.79 | C79: 1308.08 | D79: 1211.22 | E79: 1220.64
A80: 2013-12-01 | B80: 1260.97 | C80: 1302.87 | D80: 1222.2 | E80: 1302.29
A81: 2013-11-01 | B81: 1199.68 | C81: 1261.04 | D81: 1171.2 | E81: 1258.66
A82: 2013-10-01 | B82: 1198.18 | C82: 1222.56 | D82: 1138.75 | E82: 1194.26
A83: 2013-09-01 | B83: 1109.41 | C83: 1223.12 | D83: 1107.9 | E83: 1194.1
A84: 2013-08-01 | B84: 1134.84 | C84: 1196.17 | D84: 1103.94 | E84: 1106.05
A85: 2013-07-01 | B85: 1143.96 | C85: 1232.02 | D85: 1127.01 | E85: 1131.7
A86: 2013-06-01 | B86: 1122.1 | C86: 1139.76 | D86: 1033.02 | E86: 1133.84
A87: 2013-05-01 | B87: 1164.31 | C87: 1289.77 | D87: 1129.07 | E87: 1135.78
A88: 2013-04-01 | B88: 1031.75 | C88: 1176.36 | D88: 971.33 | E88: 1165.13
A89: 2013-03-01 | B89: 971.99 | C89: 1061.75 | D89: 971.22 | E89: 1034.71
A90: 2013-02-01 | B90: 945.54 | C90: 981.8 | D90: 930.04 | E90: 975.66
A91: 2013-01-01 | B91: 876.97 | C91: 942.08 | D91: 862.62 | E91: 940.25
A92: 2012-12-01 | B92: 785.48 | C92: 861.57 | D92: 776.83 | E92: 859.8
A93: 2012-11-01 | B93: 743.02 | C93: 787.74 | D93: 718.36 | E93: 781.46
A94: 2012-10-01 | B94: 732.78 | C94: 757.59 | D94: 710.32 | E94: 742.33
A95: 2012-09-01 | B95: 731.87 | C95: 769.54 | D95: 715.05 | E95: 737.42
A96: 2012-08-01 | B96: 731.11 | C96: 769.79 | D96: 720.03 | E96: 731.64
A97: 2012-07-01 | B97: 778.66 | C97: 781.94 | D97: 703.31 | E97: 736.31
A98: 2012-06-01 | B98: 712.18 | C98: 773.21 | D98: 692.18 | E98: 770.08
A99: 2012-05-01 | B99: 801.76 | C99: 801.97 | D99: 711.38 | E99: 719.49
A100: 2012-04-01 | B100: 862.07 | C100: 863.23 | D100: 800.55 | E100: 804.27
A101: 2012-03-01 | B101: 840.23 | C101: 872.42 | D101: 815.85 | E101: 854.35
A102: 2012-02-01 | B102: 755.1 | C102: 847.83 | D102: 754.84 | E102: 835.96
A103: 2012-01-01 | B103: 737.52 | C103: 769.36 | D103: 722.85 | E103: 755.27
A104: 2011-12-01 | B104: 740.7 | C104: 750.61 | D104: 712.27 | E104: 728.61
A105: 2011-11-01 | B105: 757.77 | C105: 761.04 | D105: 703.88 | E105: 728.46
A106: 2011-10-01 | B106: 748.8 | C106: 779.08 | D106: 724.77 | E106: 764.06
A107: 2011-09-01 | B107: 776.04 | C107: 780.99 | D107: 727.33 | E107: 761.17
A108: 2011-08-01 | B108: 847.12 | C108: 858.53 | D108: 740.51 | E108: 770.6
A109: 2011-07-01 | B109: 854.83 | C109: 879.48 | D109: 841.37 | E109: 841.37
A110: 2011-06-01 | B110: 839.41 | C110: 850.32 | D110: 801.78 | E110: 849.22
A111: 2011-05-01 | B111: 861.6 | C111: 866.65 | D111: 812.52 | E111: 838.48
A112: 2011-04-01 | B112: 870.96 | C112: 874.35 | D112: 824.61 | E112: 851.85
A113: 2011-03-01 | B113: 956.34 | C113: 964.18 | D113: 725.9 | E113: 869.38
A114: 2011-02-01 | B114: 914.34 | C114: 976.28 | D114: 910.82 | E114: 951.27
A115: 2011-01-01 | B115: 909.44 | C115: 939.7 | D115: 904.25 | E115: 910.08
A116: 2010-12-01 | B116: 860.7 | C116: 909.67 | D116: 858.87 | E116: 898.8
A117: 2010-11-01 | B117: 806.55 | C117: 878.64 | D117: 799.64 | E117: 860.94
A118: 2010-10-01 | B118: 833.46 | C118: 850.13 | D118: 803.54 | E118: 810.91
A119: 2010-09-01 | B119: 804.25 | C119: 858.77 | D119: 800.69 | E119: 829.51
A120: 2010-08-01 | B120: 851.45 | C120: 864.25 | D120: 803.78 | E120: 804.67
A121: 2010-07-01 | B121: 834.72 | C121: 874.25 | D121: 822.02 | E121: 849.5
A122: 2010-06-01 | B122: 879.43 | C122: 904.03 | D122: 835.91 | E122: 841.42
A123: 2010-05-01 | B123: 970.44 | C123: 970.46 | D123: 850.88 | E123: 880.46
A124: 2010-04-01 | B124: 983.99 | C124: 1001.77 | D124: 968.79 | E124: 987.04
A125: 2010-03-01 | B125: 895.23 | C125: 984.06 | D125: 893.81 | E125: 978.81
A126: 2010-02-01 | B126: 900.38 | C126: 921.9 | D126: 876.77 | E126: 894.1
A127: 2010-01-01 | B127: 912.48 | C127: 966.4 | D127: 901.12 | E127: 901.12
A128: 2009-12-01 | B128: 833.52 | C128: 920.54 | D128: 829.56 | E128: 907.59
A129: 2009-11-01 | B129: 884.08 | C129: 884.08 | D129: 809.24 | E129: 839.94
A130: 2009-10-01 | B130: 905.39 | C130: 914.96 | D130: 863.78 | E130: 894.67
A131: 2009-09-01 | B131: 962.29 | C131: 971.91 | D131: 898.08 | E131: 909.84
A132: 2009-08-01 | B132: 953.53 | C132: 987.27 | D132: 938.81 | E132: 965.73
A133: 2009-07-01 | B133: 924.18 | C133: 950.38 | D133: 852.11 | E133: 950.26
A134: 2009-06-01 | B134: 898.35 | C134: 954.08 | D134: 895.56 | E134: 929.76
A135: 2009-05-01 | B135: 840.13 | C135: 906.47 | D135: 837.68 | E135: 897.91
A136: 2009-04-01 | B136: 780.51 | C136: 856.08 | D136: 778.21 | E136: 837.79
A137: 2009-03-01 | B137: 745.74 | C137: 845.64 | D137: 698.46 | E137: 773.66
A138: 2009-02-01 | B138: 785.66 | C138: 803.6 | D138: 717.85 | E138: 756.71
A139: 2009-01-01 | B139: 871.01 | C139: 896.21 | D139: 767.82 | E139: 794.03
A140: 2008-12-01 | B140: 832.62 | C140: 859.66 | D140: 782.16 | E140: 859.24
A141: 2008-11-01 | B141: 878.43 | C141: 966.91 | D141: 753.91 | E141: 834.82
A142: 2008-10-01 | B142: 1099.34 | C142: 1107.68 | D142: 721.53 | E142: 867.12
A143: 2008-09-01 | B143: 1242.1 | C143: 1242.1 | D143: 1069.69 | E143: 1087.41
A144: 2008-08-01 | B144: 1294.38 | C144: 1296.07 | D144: 1212.95 | E144: 1254.71
A145: 2008-07-01 | B145: 1324.11 | C145: 1334.52 | D145: 1240.91 | E145: 1303.62
A146: 2008-06-01 | B146: 1409.09 | C146: 1449.14 | D146: 1311.35 | E146: 1320.1
A147: 2008-05-01 | B147: 1352.77 | C147: 1411.87 | D147: 1327.21 | E147: 1408.14
A148: 2008-04-01 | B148: 1218.64 | C148: 1372.96 | D148: 1214.92 | E148: 1358.65
A149: 2008-03-01 | B149: 1306.8 | C149: 1307.03 | D149: 1139.62 | E149: 1212.96
A150: 2008-02-01 | B150: 1342.54 | C150: 1372.82 | D150: 1274.08 | E150: 1324.28
A151: 2008-01-01 | B151: 1461.23 | C151: 1461.31 | D151: 1219.95 | E151: 1346.31
A152: 2007-12-01 | B152: 1543.17 | C152: 1578.39 | D152: 1447.54 | E152: 1475.68
A153: 2007-11-01 | B153: 1626.51 | C153: 1638.71 | D153: 1417.47 | E153: 1531.88
A154: 2007-10-01 | B154: 1614.23 | C154: 1679.71 | D154: 1539.09 | E154: 1620.07
A155: 2007-09-01 | B155: 1605.66 | C155: 1622.49 | D155: 1506.19 | E155: 1616.62
A156: 2007-08-01 | B156: 1698.33 | C156: 1698.33 | D156: 1479.82 | E156: 1608.25
A157: 2007-07-01 | B157: 1776.8 | C157: 1796.89 | D157: 1676.69 | E157: 1706.18
A158: 2007-06-01 | B158: 1763.96 | C158: 1793.61 | D158: 1731.41 | E158: 1774.88
A159: 2007-05-01 | B159: 1704.01 | C159: 1757.09 | D159: 1686.84 | E159: 1755.68
A160: 2007-04-01 | B160: 1719.78 | C160: 1743.5 | D160: 1682.49 | E160: 1701
